[Event "8. Arber-Schachopen 2019"]
[Site "Bodenmais"]
[Date "2019.07.27"]
[Round "1.1"]
[White "Vanhee, Lars"]
[Black "Delchev, Aleksander"]
[Result "0-1"]
[ECO "A43"]
[WhiteElo "1895"]
[BlackElo "2571"]
[Annotator "RC"]
[PlyCount "82"]
[EventDate "2019.07.27"]
[EventCountry "GER"]
[SourceTitle "playchess.com"]
[Source "ChessBase"]
[SourceQuality "1"]
[TimeControl "40/5400+30:1800+30"]

1. d4 {[%emt 0:00:00]} c5 {[%emt 0:00:00]} 2. d5 {[%emt 0:00:00]} g6 {[%emt 0:00:00]} 3. c4 {[%emt 0:00:00]} d6 {[%emt 0:00:30]} 4. Nc3 {[%emt 0:00:02]} Bg7 {[%emt 0:00:04]} 5. Nf3 {[%emt 0:00:37]} Nf6 {[%emt 0:00:10]} 6. Bf4 {[%emt 0:01:14]} O-O {[%emt 0:00:15]} 7. h3 {[%emt 0:01:16]} Qb6 {[%emt 0:09:10]} 8. Qd2 {[%emt 0:04:22]} e6 {[%emt 0:00:10]} 9. e3 {[%emt 0:12:28]} exd5 {[%emt 0:01:06]} 10. cxd5 {[%emt 0:00:20]} Bf5 {[%emt 0:00:30]} 11. Be2 {[%emt 0:09:58]} Ne4 {[%emt 0:00:18]} 12. Nxe4 {[%emt 0:00:33]} Bxe4 {[%emt 0:00:05]} 13. O-O {[%emt 0:01:27]} h6 {[%emt 0:02:55]} 14. a4 {[%emt 0:04:44]} Na6 {[%emt 0:10:16]} 15. a5 {[%emt 0:06:47]} Qd8 {[%emt 0:00:05]} 16. Ne1 {[%emt 0:03:43]} g5 {[%emt 0:02:37]} 17. Bh2 {[%emt 0:00:24]} Nb4 {[%emt 0:00:12]} 18. Bc4 {[%emt 0:05:28]} Qf6 {[%emt 0:02:04]} 19. f3 {[%emt 0:01:45]} Qxb2 {[%emt 0:04:13]} 20. Rd1 {[%emt 0:08:07]} Bc2 {[%emt 0:05:35]} 21. Nxc2 {[%emt 0:03:15]} Qxc2 {[%emt 0:02:07]} 22. Qxc2 {[%emt 0:03:55]} Nxc2 {[%emt 0:00:04]} 23. Bxd6 {[%emt 0:01:13]} Nxe3 {[%emt 0:00:06]} 24. Bxf8 {[%emt 0:00:13]} Kxf8 {[%emt 0:00:11]} 25. Bb5 {[%emt 0:01:29]} Bd4 {[%emt 0:01:57]} 26. Kh1 {[%emt 0:01:18]} Rd8 {[%emt 0:00:07]} 27. Bd3 {[%emt 0:03:36]} Rxd5 {[%emt 0:00:48]} 28. Be4 {[%emt 0:00:11]} Rd7 {[%emt 0:00:05]} 29. Rfe1 {[%emt 0:00:40]} Nxd1 {[%emt 0:00:12]} 30. Rxd1 {[%emt 0:00:02]} b6 {[%emt 0:01:36]} 31. a6 {[%emt 0:02:13]} Rd6 {[%emt 0:03:57]} 32. Bd3 {[%emt 0:01:31]} Be3 {[%emt 0:01:03]} 33. Be2 {[%emt 0:00:37]} Rxd1+ {[%emt 0:00:03]} 34. Bxd1 {[%emt 0:00:10]} b5 {[%emt 0:00:04]} 35. Be2 {[%emt 0:00:18]} c4 {[%emt 0:00:03]} 36. g3 {[%emt 0:00:56]} Ke7 {[%emt 0:00:05]} 37. Kg2 {[%emt 0:00:08]} Kd6 {[%emt 0:00:03]} 38. Kf1 {[%emt 0:00:05]} Kc5 {[%emt 0:00:03]} 39. Ke1 {[%emt 0:00:12]} b4 {[%emt 0:00:02]} 40. Kd1 {[%emt 0:00:11]} b3 {[%emt 0:00:04]} 41. g4 {[%emt 0:32:10]} c3 {[%emt 0:30:12]} 0-1

[Event "8. Arber-Schachopen 2019"]
[Site "Bodenmais"]
[Date "2019.07.27"]
[Round "1.4"]
[White "Milov, Leonid"]
[Black "Malditz, Dieter"]
[Result "1-0"]
[ECO "B18"]
[WhiteElo "2472"]
[BlackElo "1869"]
[Annotator "RC"]
[PlyCount "47"]
[EventDate "2019.07.27"]
[EventCountry "GER"]
[SourceTitle "playchess.com"]
[Source "ChessBase"]
[SourceQuality "1"]
[TimeControl "40/5400+30:1800+30"]

1. e4 c6 {[%emt 0:00:00]} 2. d4 {[%emt 0:00:14]} d5 {[%emt 0:00:03]} 3. Nc3 {[%emt 0:00:07]} dxe4 {[%emt 0:00:24]} 4. Nxe4 {[%emt 0:00:04]} Bf5 {[%emt 0:00:16]} 5. Ng3 {[%emt 0:00:06]} Bg6 {[%emt 0:00:05]} 6. Nh3 {[%emt 0:00:17]} e6 {[%emt 0:01:01]} 7. Nf4 {[%emt 0:00:07]} Bd6 {[%emt 0:00:16]} 8. Ngh5 {[%emt 0:00:33]} Bxh5 {[%emt 0:04:30]} 9. Nxh5 {[%emt 0:00:20]} g6 {[%emt 0:00:17]} 10. Nf4 {[%emt 0:00:08]} Nd7 {[%emt 0:01:38]} 11. g3 {[%emt 0:02:21]} Ngf6 {[%emt 0:03:10]} 12. Bg2 {[%emt 0:00:45]} Qc7 {[%emt 0:21:05]} 13. O-O {[%emt 0:00:33]} O-O 14. Nd3 {[%emt 0:04:45]} c5 {[%emt 0:05:51]} 15. Nxc5 {[%emt 0:06:04]} Bxc5 {[%emt 0:02:10]} 16. Qf3 {[%emt 0:30:13]} Nd5 17. a3 {[%emt 0:00:30]} Rfb8 {[%emt 0:12:39]} 18. Qb3 {[%emt 0:04:57]} Rd8 {[%emt 0:08:00]} 19. Bxd5 {[%emt 0:11:30]} Rab8 {[%emt 0:00:30]} 20. Bh6 {[%emt 0:00:12]} Nb6 {[%emt 0:04:44]} 21. Rad1 {[%emt 0:05:28]} e5 {[%emt 0:03:07]} 22. Qxb6 Bf8 23. Be3 Bc5 24. Bg5 1-0

[Event "8. Arber-Schachopen 2019"]
[Site "Bodenmais"]
[Date "2019.07.28"]
[Round "2.7"]
[White "Neiss, Josef Martin"]
[Black "Rotstein, Arkadij"]
[Result "0-1"]
[ECO "A04"]
[WhiteElo "2041"]
[BlackElo "2471"]
[Annotator "RC"]
[PlyCount "88"]
[EventDate "2019.07.27"]
[EventCountry "GER"]
[SourceTitle "playchess.com"]
[Source "ChessBase"]
[SourceQuality "1"]
[TimeControl "40/5400+30:1800+30"]

1. Nf3 {[%emt 0:03:55]} g6 {[%emt 0:00:02]} 2. e4 {[%emt 0:00:19]} Bg7 {[%emt 0:00:10]} 3. d4 {[%emt 0:00:19]} d6 {[%emt 0:00:13]} 4. Bc4 {[%emt 0:01:50]} e6 {[%emt 0:00:31]} 5. O-O {[%emt 0:00:53]} Ne7 {[%emt 0:00:12]} 6. c3 {[%emt 0:01:19]} Nd7 {[%emt 0:00:15]} 7. Re1 {[%emt 0:01:46]} a6 {[%emt 0:02:55]} 8. a4 {[%emt 0:02:48]} b6 {[%emt 0:01:23]} 9. Nbd2 {[%emt 0:04:21]} O-O {[%emt 0:03:14]} 10. Nf1 {[%emt 0:01:15]} Bb7 {[%emt 0:02:46]} 11. Ng3 {[%emt 0:00:51]} c5 {[%emt 0:00:43]} 12. Be3 {[%emt 0:05:28]} Nf6 {[%emt 0:07:39]} 13. e5 {[%emt 0:05:30]} dxe5 {[%emt 0:08:27]} 14. Nxe5 {[%emt 0:06:16]} Nfd5 {[%emt 0:02:50]} 15. Nd3 {[%emt 0:07:15]} Nxe3 {[%emt 0:08:26]} 16. fxe3 {[%emt 0:00:04]} cxd4 {[%emt 0:01:05]} 17. cxd4 {[%emt 0:02:36]} Bxd4 {[%emt 0:01:09]} 18. Qg4 {[%emt 0:07:46]} Bg7 {[%emt 0:01:13]} 19. Rad1 {[%emt 0:01:09]} Qe8 {[%emt 0:04:16]} 20. Nf4 {[%emt 0:05:36]} Nc6 {[%emt 0:05:04]} 21. Ngh5 {[%emt 0:02:02]} Bh8 {[%emt 0:05:40]} 22. Qg5 {[%emt 0:10:32]} Qe7 {[%emt 0:13:29]} 23. Qxe7 {[%emt 0:02:24]} Nxe7 {[%emt 0:00:02]} 24. Rd7 {[%emt 0:00:16]} Bd5 {[%emt 0:02:58]} 25. Nxd5 {[%emt 0:06:57]} Nxd5 {[%emt 0:06:17]} 26. Bxd5 {[%emt 0:01:40]} exd5 {[%emt 0:00:09]} 27. Nf4 {[%emt 0:00:07]} d4 {[%emt 0:01:00]} 28. exd4 {[%emt 0:06:06]} Rad8 {[%emt 0:00:23]} 29. Rxd8 {[%emt 0:01:54]} Rxd8 {[%emt 0:00:02]} 30. Ne2 {[%emt 0:00:52]} Bxd4+ {[%emt 0:00:11]} 31. Nxd4 {[%emt 0:00:09]} Rxd4 {[%emt 0:00:02]} 32. b3 {[%emt 0:03:05]} a5 {[%emt 0:00:47]} 33. Re3 {[%emt 0:00:29]} Kg7 {[%emt 0:05:21]} 34. Kf2 {[%emt 0:00:16]} Rd2+ {[%emt 0:00:09]} 35. Kf3 {[%emt 0:00:51]} Rb2 {[%emt 0:00:12]} 36. h3 h5 37. g3 {[%emt 0:02:46]} Kf6 {[%emt 0:01:22]} 38. h4 {[%emt 0:04:26]} Kf5 {[%emt 0:00:23]} 39. Rc3 f6 40. Re3 {[%emt 0:01:37]} g5 {[%emt 0:02:04]} 41. hxg5 {[%emt 0:31:20]} fxg5 {[%emt 0:30:02]} 42. Rd3 {[%emt 0:01:16]} g4+ {[%emt 0:00:49]} 43. Ke3 {[%emt 0:00:11]} Ke5 {[%emt 0:00:12]} 44. Rc3 {[%emt 0:00:00]} Rg2 {[%emt 0:00:00] Kd4+} 0-1

[Event "8. Arber-Schachopen 2019"]
[Site "Bodenmais"]
[Date "2019.07.28"]
[Round "2.8"]
[White "Hoffmann, Michael"]
[Black "Palmi, Herbert"]
[Result "1-0"]
[ECO "B12"]
[WhiteElo "2438"]
[BlackElo "2056"]
[Annotator "RC"]
[PlyCount "89"]
[EventDate "2019.07.27"]
[EventCountry "GER"]
[SourceTitle "playchess.com"]
[Source "ChessBase"]
[SourceQuality "1"]
[TimeControl "40/5400+30:1800+30"]

1. e4 {[%emt 0:00:00]} c6 {[%emt 0:00:33]} 2. d4 {[%emt 0:00:37]} d6 {[%emt 0:01:04]} 3. c4 {[%emt 0:04:29]} e5 {[%emt 0:00:34]} 4. Nc3 {[%emt 0:01:17]} Nf6 {[%emt 0:00:54]} 5. Nf3 {[%emt 0:01:27]} Qc7 {[%emt 0:00:20]} 6. g3 {[%emt 0:03:57]} Be7 {[%emt 0:00:17]} 7. Bg2 {[%emt 0:00:11]} Nbd7 {[%emt 0:00:13]} 8. O-O {[%emt 0:00:24]} Nf8 {[%emt 0:00:18]} 9. h3 {[%emt 0:08:08]} Ng6 {[%emt 0:00:19]} 10. Be3 {[%emt 0:00:41]} Bd7 {[%emt 0:05:39]} 11. c5 {[%emt 0:05:24]} dxc5 {[%emt 0:00:52]} 12. dxe5 {[%emt 0:01:52]} Nxe5 {[%emt 0:01:25]} 13. Nxe5 {[%emt 0:00:36]} Qxe5 {[%emt 0:00:05]} 14. f4 {[%emt 0:00:15]} Qh5 {[%emt 0:08:35]} 15. e5 {[%emt 0:13:47]} Qxd1 {[%emt 0:00:36]} 16. Raxd1 {[%emt 0:00:28]} Ng8 {[%emt 0:00:20]} 17. Ne4 {[%emt 0:01:00]} b6 {[%emt 0:00:27]} 18. f5 {[%emt 0:00:58]} O-O-O {[%emt 0:00:37]} 19. f6 {[%emt 0:04:55]} gxf6 {[%emt 0:01:07]} 20. exf6 {[%emt 0:00:08]} Bf8 {[%emt 0:00:17]} 21. Nd6+ {[%emt 0:06:38]} Bxd6 {[%emt 0:00:28]} 22. Rxd6 {[%emt 0:00:02]} Re8 {[%emt 0:04:31]} 23. Bg5 {[%emt 0:11:12]} h6 {[%emt 0:04:55]} 24. Bh4 {[%emt 0:06:13]} Re6 {[%emt 0:01:33]} 25. Rxe6 {[%emt 0:01:17]} Bxe6 {[%emt 0:00:09]} 26. g4 {[%emt 0:00:27]} h5 {[%emt 0:28:51]} 27. g5 {[%emt 0:01:26]} Kb7 {[%emt 0:00:36]} 28. a3 {[%emt 0:01:16]} a5 {[%emt 0:08:20]} 29. Rd1 {[%emt 0:01:23]} Nxf6 {[%emt 0:00:16]} 30. gxf6 {[%emt 0:00:08]} Rg8 {[%emt 0:00:24]} 31. Kf2 {[%emt 0:00:23]} b5 {[%emt 0:01:15]} 32. Rd6 {[%emt 0:01:41]} b4 {[%emt 0:01:07]} 33. Bxc6+ {[%emt 0:06:39]} Kc7 {[%emt 0:00:10]} 34. Rxe6 {[%emt 0:00:12]} fxe6 {[%emt 0:00:06]} 35. f7 {[%emt 0:00:07]} Rf8 {[%emt 0:00:18]} 36. Be8 {[%emt 0:00:02]} Kd6 {[%emt 0:00:12]} 37. Ke3 {[%emt 0:00:31]} c4 {[%emt 0:01:42]} 38. axb4 {[%emt 0:03:34]} axb4 {[%emt 0:00:16]} 39. Kd4 {[%emt 0:00:35]} c3 {[%emt 0:00:22]} 40. bxc3 {[%emt 0:00:07]} e5+ {[%emt 0:00:34]} 41. Kc4 {[%emt 0:30:13]} bxc3 {[%emt 0:30:06]} 42. Kxc3 {[%emt 0:00:11]} Ke6 {[%emt 0:00:14]} 43. Kd3 {[%emt 0:00:11]} Rxf7 {[%emt 0:02:05]} 44. Bxf7+ {[%emt 0:00:07]} Kxf7 {[%emt 0:00:05]} 45. Ke4 {[%emt 0:00:06]} 1-0

[Event "8. Arber-Schachopen 2019"]
[Site "Bodenmais"]
[Date "2019.07.29"]
[Round "3.1"]
[White "Woelk, Tom-Frederic"]
[Black "Delchev, Aleksander"]
[Result "0-1"]
[ECO "E20"]
[WhiteElo "2229"]
[BlackElo "2571"]
[Annotator "ChessBase"]
[PlyCount "70"]
[EventDate "2019.07.27"]
[EventCountry "GER"]
[SourceTitle "playchess.com"]
[Source "ChessBase"]
[SourceQuality "1"]
[TimeControl "40/5400+30:1800+30"]

1. d4 {[%emt 0:00:00]} Nf6 {[%emt 0:04:40]} 2. c4 {[%emt 0:00:00]} e6 {[%emt 0:00:06]} 3. Nc3 {[%emt 0:00:04]} Bb4 {[%emt 0:00:07]} 4. f3 {[%emt 0:00:08]} d5 {[%emt 0:01:28]} 5. a3 {[%emt 0:00:12]} Be7 {[%emt 0:00:49]} 6. cxd5 {[%emt 0:08:39]} exd5 {[%emt 0:04:20]} 7. e4 {[%emt 0:01:24]} dxe4 {[%emt 0:01:19]} 8. fxe4 {[%emt 0:00:09]} O-O {[%emt 0:01:37]} 9. Nf3 {[%emt 0:10:22]} c5 {[%emt 0:06:18]} 10. d5 {[%emt 0:09:42]} Bd6 {[%emt 0:00:19]} 11. Bd3 {[%emt 0:18:40]} Bg4 {[%emt 0:01:47]} 12. O-O {[%emt 0:02:20]} Nbd7 {[%emt 0:00:06]} 13. Qe1 {[%emt 0:02:34]} Re8 {[%emt 0:11:06]} 14. Bb5 {[%emt 0:06:48]} a6 {[%emt 0:06:10]} 15. Bxd7 {[%emt 0:00:07]} Nxd7 {[%emt 0:00:41]} 16. Bg5 {[%emt 0:07:04]} f6 {[%emt 0:05:08]} 17. Bh4 {[%emt 0:03:15]} b5 {[%emt 0:05:23]} 18. Bg3 {[%emt 0:00:34]} Nb6 {[%emt 0:00:24]} 19. Bxd6 {[%emt 0:00:48]} Qxd6 {[%emt 0:00:03]} 20. Qh4 {[%emt 0:00:38]} Bxf3 {[%emt 0:03:26]} 21. gxf3 {[%emt 0:00:35]} Nc4 {[%emt 0:04:38]} 22. Rf2 {[%emt 0:00:35]} b4 {[%emt 0:01:33]} 23. Na4 {[%emt 0:07:05]} Ne5 {[%emt 0:11:54]} 24. Qg3 {[%emt 0:00:13]} c4 {[%emt 0:01:49]} 25. Rc2 {[%emt 0:03:08]} a5 {[%emt 0:03:17]} 26. f4 {[%emt 0:03:03]} Nd3 {[%emt 0:00:04]} 27. Rxc4 {[%emt 0:00:19]} Nxf4 {[%emt 0:00:06]} 28. Kh1 {[%emt 0:00:45]} Rac8 {[%emt 0:01:26]} 29. Rxc8 {[%emt 0:01:04]} Rxc8 {[%emt 0:00:01]} 30. axb4 {[%emt 0:00:09]} Qe5 {[%emt 0:02:22]} 31. Qf3 {[%emt 0:01:37]} Rc2 {[%emt 0:06:02]} 32. Rg1 {[%emt 0:06:43]} Nh3 {[%emt 0:05:33]} 33. Qxh3 {[%emt 0:02:02]} Qxe4+ {[%emt 0:00:03]} 34. Qg2 {[%emt 0:00:07]} Rxg2 {[%emt 0:00:03]} 35. Rxg2 {[%emt 0:00:08]} axb4 {[%emt 0:00:20] Rg3} 0-1

[Event "8. Arber-Schachopen 2019"]
[Site "Bodenmais"]
[Date "2019.07.29"]
[Round "3.2"]
[White "Mirzoev, Emil"]
[Black "Senner, Peter"]
[Result "1-0"]
[ECO "A21"]
[WhiteElo "2493"]
[BlackElo "2231"]
[Annotator "ChessBase"]
[PlyCount "51"]
[EventDate "2019.07.27"]
[EventCountry "GER"]
[SourceTitle "playchess.com"]
[Source "ChessBase"]
[SourceQuality "1"]
[TimeControl "40/5400+30:1800+30"]

1. c4 {[%emt 0:05:40]} e5 {[%emt 0:00:00]} 2. Nc3 {[%emt 0:00:05]} d6 {[%emt 0:00:00]} 3. d4 {[%emt 0:00:21]} Be7 {[%emt 0:00:26]} 4. Nf3 {[%emt 0:00:34]} Nc6 {[%emt 0:03:40]} 5. g3 {[%emt 0:03:26]} f5 {[%emt 0:00:24]} 6. d5 {[%emt 0:02:10]} Nb8 {[%emt 0:00:38]} 7. e4 {[%emt 0:00:26]} Nf6 {[%emt 0:02:10]} 8. exf5 {[%emt 0:06:00]} Bxf5 {[%emt 0:00:11]} 9. Bd3 {[%emt 0:00:09]} e4 {[%emt 0:06:27]} 10. Nd4 {[%emt 0:01:42]} Bg4 {[%emt 0:00:40]} 11. Be2 {[%emt 0:00:05]} Bd7 {[%emt 0:10:44]} 12. Qc2 {[%emt 0:01:37]} c5 {[%emt 0:00:32]} 13. Nb3 {[%emt 0:08:14]} Bf5 {[%emt 0:07:54]} 14. Nd2 {[%emt 0:00:26]} Qa5 {[%emt 0:15:18]} 15. O-O {[%emt 0:01:34]} O-O {[%emt 0:01:42]} 16. Ndxe4 {[%emt 0:00:42]} Bh3 {[%emt 0:01:39]} 17. Rd1 {[%emt 0:02:34]} Nxe4 {[%emt 0:03:49]} 18. Nxe4 {[%emt 0:00:19]} Nd7 {[%emt 0:00:17]} 19. Bd2 {[%emt 0:04:50]} Qd8 {[%emt 0:01:04]} 20. f4 {[%emt 0:00:34]} Bf6 {[%emt 0:11:21]} 21. Bc3 {[%emt 0:01:14]} Bd4+ {[%emt 0:00:35]} 22. Bxd4 {[%emt 0:00:31]} cxd4 {[%emt 0:00:06]} 23. Ng5 {[%emt 0:01:04]} Bf5 {[%emt 0:02:04]} 24. Bd3 {[%emt 0:00:18]} h6 {[%emt 0:00:39]} 25. Bxf5 {[%emt 0:01:21]} hxg5 {[%emt 0:00:09]} 26. Be6+ {[%emt 0:00:48]} 1-0

[Event "8. Arber-Schachopen 2019"]
[Site "Bodenmais"]
[Date "2019.07.29"]
[Round "3.3"]
[White "Vuckovic, Zarko"]
[Black "Pap, Misa"]
[Result "0-1"]
[ECO "C55"]
[WhiteElo "2214"]
[BlackElo "2461"]
[Annotator "ChessBase"]
[PlyCount "34"]
[EventDate "2019.07.27"]
[EventCountry "GER"]
[SourceTitle "playchess.com"]
[Source "ChessBase"]
[SourceQuality "1"]
[TimeControl "40/5400+30:1800+30"]

1. e4 {[%emt 0:00:00]} e5 {[%emt 0:00:06]} 2. Nf3 {[%emt 0:00:00]} Nc6 {[%emt 0:00:09]} 3. d4 {[%emt 0:00:00]} exd4 {[%emt 0:00:06]} 4. Bc4 {[%emt 0:00:00]} Nf6 {[%emt 0:00:21]} 5. e5 {[%emt 0:00:00]} d5 {[%emt 0:00:05]} 6. Bb5 {[%emt 0:00:00]} Nd7 {[%emt 0:00:22]} 7. O-O {[%emt 0:00:03]} Be7 {[%emt 0:00:12]} 8. Re1 {[%emt 0:01:11]} O-O {[%emt 0:03:17]} 9. e6 {[%emt 0:09:56]} fxe6 {[%emt 0:01:55]} 10. Bxc6 {[%emt 0:00:06]} bxc6 {[%emt 0:00:07]} 11. Nxd4 {[%emt 0:00:05]} Bc5 {[%emt 0:31:37]} 12. Rxe6 {[%emt 0:08:08]} Nf6 {[%emt 0:08:55]} 13. Re2 {[%emt 0:23:27]} Ng4 {[%emt 0:09:17]} 14. f3 {[%emt 0:19:25]} Ba6 {[%emt 0:03:32]} 15. c3 {[%emt 0:00:42]} Bxe2 {[%emt 0:05:39]} 16. Qxe2 {[%emt 0:00:09]} Re8 {[%emt 0:05:12]} 17. Qf1 {[%emt 0:00:10]} Qh4 {[%emt 0:00:21]} 0-1

[Event "8. Arber-Schachopen 2019"]
[Site "Bodenmais"]
[Date "2019.07.29"]
[Round "3.4"]
[White "Milov, Leonid"]
[Black "Hoffmann, Sebastian"]
[Result "1-0"]
[ECO "A03"]
[WhiteElo "2472"]
[BlackElo "2199"]
[Annotator "ChessBase"]
[PlyCount "96"]
[EventDate "2019.07.27"]
[EventCountry "GER"]
[SourceTitle "playchess.com"]
[Source "ChessBase"]
[SourceQuality "1"]
[TimeControl "40/5400+30:1800+30"]

1. f4 {[%emt 0:00:00]} d5 {[%emt 0:00:00]} 2. Nf3 {[%emt 0:00:00]} g6 {[%emt 0:00:28]} 3. g3 {[%emt 0:00:08]} Bg7 {[%emt 0:00:09]} 4. d3 {[%emt 0:00:26]} Nf6 {[%emt 0:00:39]} 5. Bg2 {[%emt 0:00:06]} O-O {[%emt 0:00:35]} 6. O-O {[%emt 0:00:05]} c5 {[%emt 0:01:26]} 7. c3 {[%emt 0:00:09]} Nc6 {[%emt 0:00:46]} 8. Na3 {[%emt 0:00:18]} Qc7 {[%emt 0:02:14]} 9. Qc2 {[%emt 0:01:07]} e5 {[%emt 0:00:50]} 10. e4 {[%emt 0:17:00]} dxe4 {[%emt 0:09:00]} 11. dxe4 {[%emt 0:00:12]} exf4 {[%emt 0:02:15]} 12. Bxf4 {[%emt 0:00:45]} Qe7 {[%emt 0:02:12]} 13. Rae1 {[%emt 0:22:57]} Bg4 {[%emt 0:17:10]} 14. Nc4 {[%emt 0:07:13]} Bxf3 {[%emt 0:06:58]} 15. Bxf3 {[%emt 0:01:17]} Rfd8 {[%emt 0:09:08]} 16. e5 {[%emt 0:02:26]} Nd5 {[%emt 0:04:21]} 17. Nd6 {[%emt 0:00:42]} Nxf4 {[%emt 0:08:21]} 18. gxf4 {[%emt 0:00:16]} Rxd6 {[%emt 0:07:23]} 19. exd6 {[%emt 0:00:36]} Qxd6 {[%emt 0:00:06]} 20. Rd1 {[%emt 0:10:22]} Qc7 {[%emt 0:05:20]} 21. Qf2 {[%emt 0:09:19]} Bf8 {[%emt 0:01:07]} 22. Bxc6 {[%emt 0:07:46]} Qxc6 {[%emt 0:00:47]} 23. Qf3 {[%emt 0:00:12]} Qc7 {[%emt 0:04:40]} 24. Qe4 {[%emt 0:02:36]} c4 {[%emt 0:02:28]} 25. Kh1 {[%emt 0:00:39]} Rc8 {[%emt 0:01:25]} 26. Rd2 {[%emt 0:00:34]} Bh6 {[%emt 0:06:27]} 27. Rd4 {[%emt 0:01:50]} Kf8 {[%emt 0:04:34]} 28. Qe5 {[%emt 0:07:20]} Bg7 {[%emt 0:00:30]} 29. Qxc7 {[%emt 0:00:27]} Rxc7 {[%emt 0:00:01]} 30. Rd8+ {[%emt 0:00:54]} Ke7 {[%emt 0:00:01]} 31. Rg8 {[%emt 0:01:21]} Bf6 {[%emt 0:01:47]} 32. Kg2 {[%emt 0:00:55]} Kd6 {[%emt 0:01:22]} 33. Kf3 {[%emt 0:00:21]} b5 {[%emt 0:00:19]} 34. Rb8 {[%emt 0:01:51]} Kc5 {[%emt 0:00:37]} 35. Rd1 {[%emt 0:00:29]} h5 {[%emt 0:01:15]} 36. Rd2 {[%emt 0:01:42]} Kc6 {[%emt 0:00:40]} 37. a4 {[%emt 0:01:21]} a6 {[%emt 0:00:29]} 38. a5 {[%emt 0:00:36]} Kc5 {[%emt 0:00:28]} 39. Rb6 {[%emt 0:00:45]} Rc6 {[%emt 0:00:22]} 40. Rd7 {[%emt 0:00:42]} Bh8 {[%emt 0:00:45]} 41. Rb8 {[%emt 0:32:04]} Bf6 {[%emt 0:03:15]} 42. Rxf7 {[%emt 0:00:00]} Bh4 {[%emt 0:05:58]} 43. Rfb7 {[%emt 0:00:00]} Be1 {[%emt 0:13:32]} 44. Rb6 {[%emt 0:00:00]} Bd2 {[%emt 0:01:43]} 45. Rxc6+ {[%emt 0:00:00]} Kxc6 {[%emt 0:00:01]} 46. Rb6+ {[%emt 0:00:00]} Kc5 {[%emt 0:02:01]} 47. Rxa6 {[%emt 0:00:00]} b4 {[%emt 0:00:20]} 48. Rxg6 {[%emt 0:00:00]} Kd5 {Ke4+} 1-0

[Event "8. Arber-Schachopen 2019"]
[Site "Bodenmais"]
[Date "2019.07.29"]
[Round "3.5"]
[White "Kleibel, Uwe"]
[Black "Peng, Li Min"]
[Result "0-1"]
[ECO "B40"]
[WhiteElo "2217"]
[BlackElo "2466"]
[Annotator "ChessBase"]
[PlyCount "68"]
[EventDate "2019.07.27"]
[EventCountry "GER"]
[SourceTitle "playchess.com"]
[Source "ChessBase"]
[SourceQuality "1"]
[TimeControl "40/5400+30:1800+30"]

1. e4 {[%emt 0:00:00]} c5 {[%emt 0:04:27]} 2. Nf3 {[%emt 0:00:00]} e6 {[%emt 0:00:16]} 3. g3 {[%emt 0:00:00]} Nc6 {[%emt 0:00:16]} 4. Bg2 {[%emt 0:00:00]} Nf6 {[%emt 0:00:10]} 5. Qe2 {[%emt 0:00:09]} g6 {[%emt 0:00:07]} 6. O-O {[%emt 0:01:59]} Bg7 {[%emt 0:00:03]} 7. c3 {[%emt 0:00:16]} O-O {[%emt 0:00:04]} 8. d4 {[%emt 0:00:06]} d5 {[%emt 0:00:03]} 9. exd5 {[%emt 0:01:32]} exd5 {[%emt 0:00:04]} 10. dxc5 {[%emt 0:00:46]} Re8 {[%emt 0:00:03]} 11. Qb5 {[%emt 0:00:58]} Bd7 {[%emt 0:01:02]} 12. Qxb7 {[%emt 0:08:47]} Rb8 {[%emt 0:07:37]} 13. Qa6 {[%emt 0:00:44]} Qe7 {[%emt 0:00:01]} 14. Qa3 {[%emt 0:02:26]} Qe2 {[%emt 0:23:11]} 15. Nd4 {[%emt 0:13:12]} Nxd4 {[%emt 0:01:03]} 16. cxd4 {[%emt 0:03:50]} Ng4 {[%emt 0:00:01]} 17. Nc3 {[%emt 0:02:16]} Qc2 {[%emt 0:00:13]} 18. Qxa7 {[%emt 0:12:48]} Bf5 {[%emt 0:14:46]} 19. Bxd5 {[%emt 0:21:02]} Bxd4 {[%emt 0:03:39]} 20. Qxf7+ {[%emt 0:14:22]} Kh8 {[%emt 0:00:01]} 21. Bb3 {[%emt 0:00:11]} Qd3 {[%emt 0:00:01]} 22. Qc4 {[%emt 0:05:10]} Bxf2+ {[%emt 0:10:51]} 23. Kg2 {[%emt 0:03:45]} Qxc4 {[%emt 0:01:45]} 24. Bxc4 {[%emt 0:00:02]} Bxc5 {[%emt 0:00:27]} 25. h3 {[%emt 0:04:05]} Ne3+ {[%emt 0:01:25]} 26. Bxe3 {[%emt 0:00:02]} Rxe3 {[%emt 0:01:59]} 27. Bb3 {[%emt 0:00:54]} Bd6 {[%emt 0:00:38]} 28. g4 {[%emt 0:03:22]} Rg3+ {[%emt 0:00:29]} 29. Kf2 {[%emt 0:00:01]} Bd3 {[%emt 0:00:02]} 30. Rh1 {[%emt 0:01:09]} Rf8+ {[%emt 0:00:04]} 31. Ke1 {[%emt 0:00:03]} Rg2 {[%emt 0:00:04]} 32. Bd5 {[%emt 0:01:29]} Rxb2 {[%emt 0:00:07]} 33. Kd1 {[%emt 0:00:32]} Be5 {[%emt 0:01:15]} 34. Rc1 {[%emt 0:00:12]} Rd8 {[%emt 0:00:17]} 0-1

[Event "8. Arber-Schachopen 2019"]
[Site "Bodenmais"]
[Date "2019.07.29"]
[Round "3.6"]
[White "Bensch, Patrick"]
[Black "Merkl, Michael"]
[Result "1-0"]
[ECO "C99"]
[WhiteElo "2197"]
[BlackElo "1548"]
[Annotator "ChessBase"]
[PlyCount "63"]
[EventDate "2019.07.27"]
[EventCountry "GER"]
[SourceTitle "playchess.com"]
[Source "ChessBase"]
[SourceQuality "1"]
[TimeControl "40/5400+30:1800+30"]

1. e4 {[%emt 0:00:00]} e5 {[%emt 0:00:00]} 2. Nf3 {[%emt 0:01:21]} Nc6 {[%emt 0:00:00]} 3. Bb5 {[%emt 0:00:39]} a6 {[%emt 0:00:00]} 4. Ba4 {[%emt 0:00:27]} Nf6 {[%emt 0:00:05]} 5. O-O {[%emt 0:00:35]} Be7 {[%emt 0:00:10]} 6. Re1 {[%emt 0:01:04]} b5 {[%emt 0:00:32]} 7. Bb3 {[%emt 0:00:21]} d6 {[%emt 0:00:17]} 8. c3 {[%emt 0:00:28]} O-O {[%emt 0:00:33]} 9. h3 {[%emt 0:00:18]} Na5 {[%emt 0:01:03]} 10. Bc2 {[%emt 0:00:25]} c5 {[%emt 0:00:16]} 11. d4 {[%emt 0:00:19]} Qc7 {[%emt 0:01:19]} 12. Nbd2 {[%emt 0:00:27]} cxd4 {[%emt 0:01:54]} 13. cxd4 {[%emt 0:00:21]} Be6 {[%emt 0:00:17]} 14. d5 {[%emt 0:14:43]} Bd7 {[%emt 0:00:07]} 15. Nf1 {[%emt 0:04:53]} h6 {[%emt 0:09:15]} 16. Ne3 {[%emt 0:02:27]} Nc4 {[%emt 0:05:26]} 17. Nxc4 {[%emt 0:07:54]} Qxc4 {[%emt 0:00:09]} 18. Bd3 {[%emt 0:00:32]} Qc7 {[%emt 0:00:16]} 19. Be3 {[%emt 0:11:50]} Rfc8 {[%emt 0:07:19]} 20. Nd2 {[%emt 0:07:19]} Bf8 {[%emt 0:11:01]} 21. Qe2 {[%emt 0:08:34]} Kh7 {[%emt 0:19:25]} 22. Nb3 {[%emt 0:04:12]} Ng8 {[%emt 0:01:44]} 23. f4 {[%emt 0:11:28]} Re8 {[%emt 0:05:57]} 24. fxe5 {[%emt 0:01:26]} dxe5 {[%emt 0:00:10]} 25. Rac1 {[%emt 0:01:10]} Qd8 {[%emt 0:07:45]} 26. Rf1 {[%emt 0:01:09]} Nf6 {[%emt 0:01:58]} 27. Qf2 {[%emt 0:02:22]} Bd6 {[%emt 0:03:28]} 28. Nc5 {[%emt 0:01:18]} Bc8 {[%emt 0:02:35]} 29. b4 {[%emt 0:00:48]} Rf8 {[%emt 0:04:04]} 30. Qf3 {[%emt 0:02:18]} Nd7 {[%emt 0:02:38]} 31. Rf2 {[%emt 0:04:11]} Qf6 {[%emt 0:02:44]} 32. Nxd7 {[%emt 0:03:20]} 1-0